bitfinex/quotes_ETHUSD_20260306
["timestamp","ask_amount","ask_price","bid_price","bid_amount"]
[1772768437674,1.90720094,2086.1,2084.7,0.48891882]
[1772768437872,1.446,2086.0,2084.7,0.48891882]
[1772768438069,1.89620094,2086.0,2084.9,0.48891882]
[1772768438286,3.09467206,2086.0,2084.9,0.48891882]
[1772768439376,1.89620094,2086.0,2084.9,0.48891882]
[1772768439695,3.09467346,2086.0,2084.9,0.48891882]
[1772768440394,0.45020094,2086.0,2085.1,0.48891882]
[1772768442777,0.45020094,2086.0,2085.2,1.19892576]
[1772768442981,0.45020094,2086.0,2085.3,0.48891882]
[1772768443304,0.001,2085.8,2085.3,0.48891882]
[1772768446097,0.001,2085.8,2085.5,0.48891882]
[1772768448571,0.001,2085.8,2085.6,1.19869581]
[1772768449377,0.001,2085.8,2085.5,0.48891882]
[1772768449598,0.45120094,2085.8,2085.3,1.6877522]
[1772768453007,1.64978568,2085.8,2085.3,1.6877522]
[1772768453508,0.45020094,2085.7,2085.3,1.6877522]
[1772768455884,0.45020094,2085.7,2085.4,0.48891882]
[1772768456608,0.002,2085.6,2085.4,0.48891882]
[1772768457110,0.001,2085.8,2085.4,0.48891882]
[1772768458508,0.001,2085.8,2085.6,0.48891882]
[1772768458899,0.45120094,2085.8,2085.3,0.48891882]
[1772768460489,0.45120094,2085.8,2085.4,1.19881077]
[1772768461810,0.45120094,2085.8,2085.4,0.45885203]
[1772768461982,1.64978986,2085.8,2085.4,0.45885203]
[1772768462182,0.45120094,2085.8,2085.4,0.45885203]
[1772768463416,1.64979411,2085.8,2085.4,1.65763323]
[1772768464420,0.45120094,2085.8,2085.4,1.65763323]
[1772768468418,0.45120094,2085.8,2085.6,0.001]
[1772768470824,1.64978606,2085.8,2085.6,0.001]
[1772768471525,1.67891539,2085.8,2085.6,0.001]
[1772768472522,0.47933027,2085.7,2085.6,0.001]
[1772768472748,0.47933027,2085.7,2085.4,0.001]
[1772768473124,0.47933027,2085.5,2085.4,0.001]
[1772768473333,0.87670339,2085.5,2085.4,0.001]
[1772768475036,2.07545668,2085.5,2085.4,0.001]
[1772768477015,0.87670339,2085.5,2085.4,0.001]
[1772768477639,2.07545668,2085.5,2085.4,0.001]
[1772768479435,0.87670339,2085.5,2085.4,0.001]
[1772768479637,2.07545668,2085.5,2085.4,0.001]
[1772768480042,3.53445668,2085.5,2085.4,0.001]
[1772768482519,0.47933027,2085.4,2085.1,0.001]
[1772768490535,0.48316727,2085.3,2085.1,0.001]
[1772768491312,0.48316727,2085.3,2084.9,0.0011]
[1772768491534,1.19881125,2085.4,2084.6,0.47407182]
[1772768491535,0.48316727,2085.1,2084.6,0.47407182]
[1772768491738,0.78050625,2084.7,2084.4,0.0011]
[1772768491938,1.85854661,2085.0,2084.1,0.0011]
[1772768491939,0.48316727,2084.4,2084.1,0.0011]
[1772768492239,0.48316727,2084.4,2084.0,0.0011]
[1772768492240,0.48316727,2084.2,2084.0,0.0011]
[1772768492418,0.48316727,2084.0,2083.8,0.38135394]
[1772768492619,0.48316727,2083.8,2083.6,0.0011]
[1772768492920,0.48316727,2083.6,2083.4,0.0011]
[1772768493128,1.94616727,2083.6,2083.4,0.0011]
[1772768493924,1.94616727,2083.6,2083.4,0.38465394]
[1772768493925,1.463,2083.6,2083.4,0.38465394]
[1772768496218,1.94716727,2083.7,2083.4,0.38465394]
[1772768496444,3.14696371,2083.7,2083.4,0.38465394]
[1772768497258,1.68296371,2083.7,2083.4,0.38465394]
[1772768497466,1.94716727,2083.7,2083.4,0.38465394]
[1772768498231,1.94716727,2083.7,2083.4,0.0011]
[1772768498828,3.14695674,2083.7,2083.4,0.0011]
[1772768499756,1.94716727,2083.7,2083.4,0.0011]
[1772768500850,0.48316727,2083.7,2083.4,0.0011]
[1772768501040,3.14795877,2083.7,2083.4,0.0011]
[1772768501627,0.48316727,2083.6,2083.4,0.0011]
[1772768502156,0.48316727,2083.5,2083.1,0.47407182]
[1772768502340,0.48316727,2083.5,2083.1,0.0011]
[1772768503759,1.19992066,2083.5,2083.1,0.0011]
[1772768503960,0.48316727,2083.4,2083.1,0.0011]
[1772768505143,0.48316727,2083.4,2083.3,0.001]
[1772768508068,0.48316727,2083.5,2083.3,0.001]
[1772768509568,1.68299827,2083.7,2083.3,0.001]
[1772768509747,1.466,2083.5,2083.3,0.47397182]
[1772768510071,0.48316727,2084.1,2083.4,0.47297182]
[1772768510366,0.48316727,2084.2,2083.4,0.47297182]
[1772768510367,0.48316727,2083.8,2083.4,0.47297182]
[1772768512067,0.48316727,2083.8,2083.3,0.001]
[1772768512068,0.48316727,2083.7,2083.3,0.001]
[1772768512365,0.48316727,2083.7,2083.1,0.0011]
[1772768512571,0.48316727,2083.5,2083.1,0.0011]
[1772768512741,0.48316727,2083.4,2083.1,0.0011]
[1772768512941,0.48316727,2083.4,2083.1,1.20121882]
[1772768513138,0.96633454,2083.6,2083.2,0.47297182]
[1772768513384,0.48316727,2083.6,2083.2,0.47297182]
[1772768514037,0.96633454,2083.6,2083.2,0.47297182]
[1772768514243,0.96633454,2083.6,2083.1,0.0011]
[1772768514244,0.48316727,2083.5,2083.1,1.67415799]
[1772768515447,0.48316727,2083.5,2083.1,0.47407182]
[1772768515663,0.48316727,2083.5,2083.2,0.47297182]
[1772768516461,0.48316727,2084.0,2083.4,0.47297182]
[1772768516642,0.48316727,2084.2,2083.4,0.47297182]
[1772768516838,0.48316727,2084.0,2083.4,0.47297182]
[1772768517071,0.48316727,2084.0,2083.2,1.20003787]
[1772768517371,0.48316727,2084.0,2083.2,1.67300969]
[1772768517576,0.48316727,2083.9,2083.2,1.67300969]
[1772768517743,0.48316727,2083.8,2083.2,1.67300969]
[1772768518570,0.48316727,2083.7,2083.4,0.0011]
[1772768520875,0.48891693,2083.5,2083.1,0.0011]
[1772768521077,0.48891693,2083.4,2083.1,0.0011]
[1772768521283,0.48891693,2083.2,2083.1,0.0011]
[1772768521578,0.88548081,2083.2,2083.1,0.0011]
[1772768522273,0.88548081,2083.2,2083.0,0.001]
[1772768522480,0.39656388,2083.1,2083.0,0.001]
[1772768523091,0.48216727,2083.0,2082.9,0.0011]
[1772768523274,0.87873115,2083.0,2082.9,0.0011]
[1772768523457,0.48216727,2083.0,2082.9,0.0011]
[1772768526896,0.48891693,2083.2,2082.9,0.0011]
[1772768527353,0.48891693,2083.1,2082.9,0.0011]
[1772768528477,1.68905776,2083.1,2082.9,0.0011]
[1772768528678,0.48891693,2083.1,2082.9,0.0011]
[1772768530857,0.001,2083.0,2082.9,0.0011]
[1772768532479,0.001,2083.0,2082.9,0.45297788]
[1772768535690,0.001,2083.0,2082.9,0.0011]
[1772768536067,0.48991693,2083.0,2082.9,0.0011]
[1772768536280,0.48991693,2083.0,2082.8,0.001]
[1772768536481,0.48991693,2083.0,2082.6,0.0011]
[1772768537762,0.48891693,2082.8,2082.6,0.0011]
[1772768539591,0.001,2083.0,2082.6,0.45297788]
[1772768539892,0.001,2083.0,2082.8,0.45187788]
[1772768542792,0.001,2083.0,2082.9,0.45187788]
[1772768552194,0.001,2083.0,2082.8,1.20136132]
[1772768552572,0.001,2083.0,2082.8,1.65546783]
[1772768554995,0.001,2083.0,2082.8,0.45520651]
[1772768555195,0.001,2083.0,2082.8,1.65549856]
[1772768555406,0.001,2083.0,2082.8,1.65550598]
[1772768557078,0.001,2083.0,2082.9,0.45410651]
[1772768559686,0.48452014,2083.0,2082.8,0.0011]
[1772768561403,3.14852965,2083.4,2083.0,0.45410651]
[1772768561606,0.48352014,2083.3,2083.0,0.45410651]
[1772768561808,0.48352014,2083.2,2082.8,0.0011]
[1772768563994,1.68365455,2083.1,2082.8,0.0011]
[1772768564805,0.48352014,2083.1,2082.8,0.45520651]
[1772768565113,0.48352014,2083.1,2082.8,0.0011]
[1772768566391,0.48352014,2083.1,2082.8,0.45520651]
[1772768566712,0.48352014,2083.2,2082.8,0.45520651]
[1772768567801,0.48352014,2083.2,2083.0,0.0011]
[1772768568192,0.48352014,2083.2,2083.0,0.00015399]
[1772768568397,1.68365455,2083.1,2083.0,0.00015399]
[1772768569200,0.48352014,2083.1,2083.0,0.00015399]
[1772768569496,0.48352014,2083.1,2082.8,0.0011]
[1772768569821,0.48352014,2083.1,2082.6,0.0011]
[1772768570216,0.48352014,2083.0,2082.6,0.0011]
[1772768570417,1.6836433,2083.2,2082.7,0.45410651]
[1772768570630,3.1486433,2083.2,2082.7,0.45410651]
[1772768571399,1.465,2083.1,2082.7,0.45410651]
[1772768571803,1.94852014,2083.1,2082.7,0.45410651]
[1772768572917,3.14865474,2083.1,2082.7,1.6544542]
[1772768573120,1.94852014,2083.1,2082.7,1.6544542]
[1772768574716,1.465,2083.1,2082.8,0.45410651]
[1772768574933,3.14849059,2083.4,2083.0,0.45410651]
[1772768575619,0.48352014,2083.6,2083.0,0.45410651]
[1772768575917,3.14836711,2083.6,2083.0,0.45410651]
[1772768576897,1.94852014,2083.6,2083.2,0.45410651]
[1772768577217,1.465,2083.6,2083.2,0.45410651]
[1772768577605,2.6648498,2083.6,2083.2,0.45410651]
[1772768578006,1.1998498,2083.6,2083.2,0.45410651]
[1772768578322,2.6648498,2083.6,2083.2,0.45410651]
[1772768579638,0.48352014,2083.9,2083.4,0.45410651]
[1772768579825,1.94952014,2083.9,2083.4,0.45410651]
[1772768581328,3.14920708,2083.9,2083.5,0.47041268]
[1772768581498,1.92232916,2083.9,2083.5,0.47041268]
[1772768581699,1.466,2084.1,2083.5,0.47041268]
[1772768583310,1.92232916,2084.1,2083.7,0.47041268]
[1772768585228,0.45632916,2084.0,2083.7,0.47041268]
[1772768585836,0.45632916,2084.0,2083.7,1.67018916]
[1772768586498,1.92232916,2084.1,2083.7,1.67018916]
[1772768586700,1.92232916,2084.1,2083.8,0.47041268]
[1772768588043,0.45632916,2084.4,2083.9,0.47041268]
[1772768588249,1.92232916,2084.3,2083.9,0.47041268]
[1772768588610,0.45632916,2084.3,2083.9,0.47041268]
[1772768588812,1.92232916,2084.3,2083.9,0.47041268]
[1772768589845,1.466,2084.3,2083.9,0.47041268]
[1772768590017,1.466,2084.3,2084.0,0.47041268]
[1772768590018,1.467,2084.3,2084.0,0.47041268]
[1772768590653,0.45632916,2084.7,2084.0,0.47041268]
[1772768592345,1.92332916,2084.7,2084.2,0.47041268]
[1772768593057,0.45632916,2084.6,2084.2,0.47041268]
[1772768593223,0.45632916,2084.6,2084.0,0.47041268]
[1772768594763,0.45632916,2084.4,2084.1,0.47041268]
[1772768594966,1.467,2084.5,2084.1,0.47041268]
[1772768596336,1.92332916,2084.5,2084.1,0.47041268]
[1772768597076,0.30082572,2084.7,2084.2,1.66991368]
[1772768597261,0.30082572,2084.7,2084.3,0.47041268]
[1772768597853,1.76782572,2084.7,2084.3,0.47041268]
[1772768598850,0.30082572,2084.6,2084.3,0.47041268]
[1772768599048,1.50015409,2084.5,2084.1,0.47041268]
[1772768599350,0.30082572,2084.4,2083.9,0.47041268]
[1772768601372,1.19935627,2084.5,2084.0,0.47041268]
[1772768601548,1.468,2084.4,2084.0,0.47041268]
[1772768603370,2.96821669,2084.4,2084.1,0.47041268]
[1772768603956,1.76882572,2084.4,2084.1,0.47041268]
[1772768604169,1.76882572,2084.4,2084.1,0.47151268]
[1772768604375,0.001,2084.3,2084.1,0.47151268]
[1772768606965,0.30182572,2084.3,2084.1,0.0011]
[1772768607298,0.30182572,2084.3,2083.9,0.47151268]
[1772768607299,0.30182572,2084.3,2083.9,0.0011]
[1772768609199,0.29972572,2084.1,2083.9,0.0011]
[1772768609396,1.469,2084.1,2083.9,0.49609884]
[1772768610874,0.001,2084.3,2083.9,0.49609884]
[1772768611398,0.001,2084.3,2084.1,0.49374199]
[1772768615103,0.30072572,2084.3,2083.9,0.0011]
[1772768616106,0.29972572,2084.2,2083.6,0.49484199]
[1772768616471,0.29972572,2084.2,2084.1,0.0011]
[1772768616677,0.29972572,2084.2,2083.9,0.0011]
[1772768618001,0.29972572,2084.2,2083.6,0.0011]
[1772768618002,0.29862572,2084.0,2083.6,0.0011]
[1772768618198,1.76962572,2083.9,2083.6,0.0011]
[1772768618397,0.29862572,2083.9,2083.6,0.49484199]
[1772768618602,1.471,2084.0,2083.6,0.49484199]
[1772768618806,1.76962572,2084.0,2083.6,0.49484199]
[1772768619495,0.29862572,2083.9,2083.6,0.0011]
[1772768620991,1.49815013,2084.2,2083.6,0.49484199]
[1772768621293,1.471,2084.1,2083.6,0.49484199]
[1772768621680,1.76962572,2084.1,2083.6,0.49484199]
[1772768622284,0.29862572,2084.1,2083.6,0.49484199]
[1772768622615,1.77062572,2084.1,2083.6,0.49484199]
[1772768623209,1.19961612,2084.0,2083.7,0.49374199]
[1772768624712,1.1995597,2084.1,2083.8,0.49374199]
[1772768624912,2.6715597,2084.1,2083.8,0.49374199]
[1772768625686,1.19954197,2084.2,2083.8,0.49374199]
[1772768625887,2.6724743,2084.3,2083.9,0.49374199]
[1772768626620,1.2004743,2084.3,2083.9,0.49374199]
[1772768626822,0.001,2084.3,2083.9,0.49374199]
[1772768627891,0.001,2084.3,2084.0,0.49374199]
[1772768628726,0.001,2084.3,2084.1,0.0011]
[1772768628905,0.001,2084.3,2084.1,0.49484199]
[1772768639713,0.001,2084.3,2084.1,0.0011]
[1772768639918,0.29962572,2084.3,2084.1,0.0011]
[1772768645050,0.29862572,2084.7,2084.2,0.45027851]
[1772768645222,1.19929168,2084.6,2084.2,0.45027851]
[1772768645547,1.19929168,2084.6,2084.1,0.0011]
[1772768645548,0.29862572,2084.5,2084.1,0.0011]
[1772768645752,0.29862572,2084.5,2084.1,0.45137851]
[1772768646447,1.4979174,2084.6,2084.1,0.45137851]
[1772768648650,0.29862572,2084.5,2084.1,0.45137851]
[1772768649824,6.27304059,2084.7,2084.2,0.45027851]
[1772768649825,1.19925508,2084.7,2084.2,0.45027851]
[1772768650047,2.67625508,2084.7,2084.2,0.45027851]
[1772768650743,1.477,2084.8,2084.3,0.45027851]
[1772768651642,0.002,2084.9,2084.3,0.45027851]
[1772768651944,0.002,2085.1,2084.4,0.46769912]
[1772768651945,1.20098443,2085.1,2084.4,0.46769912]
[1772768652451,1.20099224,2085.1,2084.4,0.46769912]
[1772768652668,0.002,2085.1,2084.6,0.46769912]
[1772768654831,0.002,2085.1,2084.8,0.46769912]
[1772768656574,0.30262572,2085.1,2084.6,0.46769912]
[1772768656727,1.19904076,2085.0,2084.6,0.46769912]
[1772768657347,1.19904076,2085.0,2084.4,0.46769912]
[1772768657348,0.30062572,2084.9,2084.4,0.46769912]
[1772768658134,0.30062572,2084.8,2084.4,0.46769912]
[1772768659357,1.19921331,2084.7,2084.4,0.46769912]
[1772768659728,0.30062572,2084.6,2084.1,0.0011]
[1772768659958,0.30062572,2084.5,2084.1,0.0011]
[1772768661755,1.50001163,2084.4,2084.1,0.0011]
[1772768664049,0.30062572,2084.3,2084.1,0.0011]
[1772768664431,4.79686615,2084.7,2084.1,0.0011]
[1772768664655,0.30062572,2084.6,2084.1,0.0011]
[1772768665738,0.30062572,2084.6,2084.3,0.001]
[1772768666353,0.30062572,2084.4,2084.3,0.001]
[1772768666577,1.77862572,2084.4,2084.3,0.001]
[1772768669866,2.97801163,2084.4,2084.3,0.001]
[1772768670165,2.67738591,2084.4,2083.9,0.0011]
[1772768670370,0.46740241,2084.3,2083.6,0.45785648]
[1772768671864,0.46740241,2084.1,2083.6,0.45785648]
[1772768672059,1.66701853,2084.0,2083.6,0.45785648]
[1772768672756,0.46740241,2084.0,2083.6,0.45785648]
[1772768672959,1.66701853,2084.0,2083.6,0.45785648]
[1772768675151,1.481,2083.9,2083.6,0.45785648]
[1772768677242,2.68068816,2083.9,2083.6,0.45785648]
[1772768677638,2.68068715,2083.9,2083.6,0.45785648]
[1772768678672,2.68068715,2083.9,2083.8,0.0011]
[1772768678858,2.68168715,2083.9,2083.8,0.0011]
[1772768680675,1.482,2084.1,2083.8,0.45785648]
[1772768681453,1.66678832,2084.4,2084.0,0.45675648]
[1772768681668,1.483,2084.1,2084.0,0.45675648]
[1772768682077,1.483,2084.1,2083.8,0.0011]
[1772768682275,1.483,2084.1,2083.9,0.45675648]
[1772768683775,1.483,2084.5,2084.0,0.45675648]
[1772768683975,4.79664389,2084.8,2084.0,0.45675648]
[1772768683976,1.95040241,2084.7,2084.0,0.45675648]
[1772768686071,3.14964973,2084.7,2084.2,0.45675648]
[1772768687366,0.46740241,2084.6,2084.2,0.45675648]
[1772768688287,0.46740241,2084.6,2084.3,0.45675648]
[1772768688787,1.6666738,2084.6,2084.3,0.45675648]
[1772768689458,0.46740241,2084.5,2084.0,0.45675648]
[1772768690959,1.19938591,2084.4,2084.0,0.45675648]
[1772768691464,0.46740241,2084.3,2083.9,0.45675648]
[1772768691790,0.46740241,2084.3,2083.8,0.0011]
[1772768692172,0.46740241,2084.3,2083.8,0.45785648]
[1772768693992,1.199501,2084.2,2083.8,0.45785648]
[1772768694991,1.66690341,2084.2,2083.8,0.45785648]
[1772768695289,3.15190341,2084.2,2083.7,0.45675648]
[1772768695664,1.485,2084.3,2083.7,0.45675648]
[1772768696775,3.15178832,2084.4,2083.9,0.45675648]
[1772768697494,0.46740241,2084.3,2083.9,0.45675648]
[1772768698072,0.46740241,2084.3,2083.6,0.0011]
[1772768698271,0.46740241,2084.0,2083.6,0.0011]
[1772768698793,0.46740241,2083.8,2083.6,0.0011]
[1772768700997,1.68939469,2083.7,2083.6,0.0011]
[1772768701872,0.48960586,2084.1,2083.6,0.46358931]
[1772768702178,3.1751734,2084.1,2083.6,0.46358931]
[1772768702782,1.486,2084.1,2083.6,0.46358931]
[1772768703095,1.68907199,2084.3,2083.8,0.46248931]
[1772768703398,3.17507199,2084.3,2083.8,0.46358931]
[1772768704094,0.48960586,2084.2,2083.8,0.46358931]
[1772768705999,1.19955856,2084.1,2083.8,0.46358931]
[1772768706174,0.48960586,2084.0,2083.8,0.0011]
[1772768708401,1.488,2084.0,2083.8,0.46358931]
[1772768708779,1.488,2084.0,2083.8,0.0011]
[1772768709096,0.48960586,2083.9,2083.6,0.0011]
[1772768709300,0.48960586,2083.9,2083.5,0.0011]
[1772768710312,2.26901887,2084.0,2083.3,0.0011]
[1772768710313,0.48960586,2083.5,2083.3,0.0011]
[1772768710489,0.48960586,2083.5,2083.0,0.46358931]
[1772768710490,1.68956746,2083.4,2083.0,0.0011]
[1772768710682,0.48960586,2083.3,2083.0,0.0011]
[1772768712601,1.2000768,2083.2,2083.0,0.0011]
[1772768713579,0.48960586,2083.8,2083.0,0.46358931]
[1772768713785,1.97860586,2083.7,2083.0,0.46358931]
[1772768714707,1.19984641,2083.6,2083.2,0.46248931]
[1772768715282,1.68945227,2083.6,2083.0,1.66377683]
[1772768715589,1.68945227,2083.6,2083.2,0.0011]
[1772768715784,1.69045227,2083.6,2083.2,0.46358931]
[1772768716192,1.69045227,2083.6,2083.2,0.0011]
[1772768718020,1.20084641,2083.6,2083.2,0.46358931]
[1772768727097,1.69045227,2083.6,2083.2,0.46358931]
[1772768727600,1.69045227,2083.6,2083.4,0.0011]
[1772768729203,0.49540507,2083.5,2083.2,0.0011]
[1772768730122,0.46872232,2083.3,2083.2,0.0011]
[1772768730328,0.46872232,2083.2,2083.0,0.0011]
[1772768730999,0.46872232,2083.2,2082.9,0.0011]
[1772768732625,0.46872232,2083.0,2082.9,0.0011]
[1772768735506,1.66891435,2083.0,2082.9,0.0011]
[1772768737735,3.16791435,2083.0,2082.9,0.0011]
[1772768738231,1.66891435,2083.0,2082.9,0.0011]
[1772768738410,2.70019203,2083.0,2082.9,0.0011]
[1772768739211,1.20019203,2083.0,2082.9,0.0011]
[1772768739438,2.70019203,2083.0,2082.9,0.0033]
[1772768740019,2.70119203,2083.0,2082.9,0.0033]
[1772768740221,2.70219203,2083.0,2082.9,0.0033]
[1772768742844,0.46872232,2082.9,2082.8,0.0011]
[1772768743212,0.46872232,2082.9,2082.4,0.34169983]
[1772768744526,1.20119203,2083.0,2082.6,0.34169983]
[1772768744728,0.001,2083.0,2082.6,0.34169983]
[1772768744929,1.504,2083.0,2082.6,0.34169983]
[1772768747470,0.46872232,2083.3,2082.5,0.34169983]
[1772768747758,1.504,2083.3,2082.5,0.34169983]
[1772768748839,0.46872232,2083.2,2082.5,0.34169983]
[1772768749861,1.20013441,2083.1,2082.6,1.20042254]
[1772768750067,0.46872232,2083.0,2082.6,0.34169983]
[1772768750733,0.46872232,2083.0,2082.5,1.20047951]
[1772768751739,0.46872232,2083.0,2082.8,0.0011]
[1772768751950,1.66897197,2082.9,2082.8,0.0011]
[1772768753557,1.66882832,2083.2,2082.8,0.34279983]
[1772768753757,1.505,2083.1,2082.8,0.34279983]
[1772768753967,1.66894932,2083.0,2082.8,0.0011]
[1772768754172,0.46872232,2082.9,2082.8,0.0011]
[1772768754456,3.17390196,2083.1,2082.8,0.0011]
[1772768755776,3.17490196,2083.1,2082.8,0.0011]
[1772768759171,2.70617964,2083.1,2082.8,0.0011]
[1772768759462,3.17490196,2083.1,2082.8,0.0011]
[1772768759833,0.46872232,2083.0,2082.8,0.0011]
[1772768760469,0.46872232,2083.0,2082.8,0.00015409]
[1772768761150,0.001,2083.6,2083.1,0.34169983]
[1772768763948,0.001,2083.4,2083.3,0.34169983]
[1772768764861,0.001,2083.4,2082.9,0.34169983]
[1772768765063,0.49536587,2083.4,2082.9,1.54194922]
[1772768765647,0.49536587,2083.4,2082.9,0.34169983]
[1772768765965,1.69537013,2083.4,2082.9,1.54193813]
[1772768766265,1.69537013,2083.4,2083.0,0.34169983]
[1772768767964,0.001,2083.6,2083.1,0.34069983]
[1772768768162,0.001,2083.6,2083.3,0.34069983]
[1772768768363,0.49536587,2083.6,2083.1,0.34069983]
[1772768769469,0.49536587,2083.6,2083.1,1.54083165]
[1772768769676,0.49536587,2083.6,2083.0,1.20015038]
[1772768770040,1.199904,2083.5,2083.0,1.54085021]
[1772768770242,0.49536587,2083.6,2083.1,0.34069983]
[1772768770441,0.001,2083.6,2083.1,0.34069983]
[1772768771347,1.19958696,2084.1,2083.1,0.34069983]
[1772768772149,1.19958696,2084.1,2083.3,0.34069983]
[1772768772347,0.49436587,2084.2,2083.3,0.34069983]
[1772768772571,1.1995093,2084.2,2083.3,0.34069983]
[1772768773546,1.69387517,2084.2,2083.3,0.34069983]
[1772768773741,0.49436587,2084.1,2083.3,0.34069983]
[1772768775047,1.69398199,2084.0,2083.4,1.54066143]
[1772768775846,1.69498199,2084.0,2083.4,1.54066143]
[1772768778575,0.49436587,2083.9,2083.4,1.54066143]
[1772768779476,1.19973126,2083.8,2083.4,1.54064686]
[1772768779666,1.69408607,2083.9,2083.4,1.54064686]
[1772768781360,0.001,2084.0,2083.5,0.34069983]
[1772768781561,0.001,2084.0,2083.6,1.19984641]
[1772768781777,0.49536587,2084.0,2083.6,0.34069983]
[1772768782073,0.49536587,2084.0,2083.3,1.54067631]
[1772768782273,0.49536587,2084.0,2083.1,5.36080654]
[1772768782458,0.49536587,2084.0,2083.1,1.54080654]
[1772768782655,0.49536587,2084.0,2083.1,0.34069983]
[1772768782866,0.49436587,2083.6,2082.5,1.54223843]
[1772768783067,0.49436587,2083.4,2082.5,1.54227905]
[1772768784074,0.49436587,2083.2,2082.6,0.34179983]
[1772768784245,0.49436587,2083.5,2082.6,0.34179983]
[1772768784455,1.19994331,2083.5,2082.6,0.34179983]
[1772768786589,1.19994331,2083.5,2082.8,0.34195392]
[1772768787387,0.49436587,2083.4,2083.0,0.0011]
[1772768788793,0.49436587,2083.2,2082.8,0.00015409]
[1772768789568,0.48991958,2083.0,2082.8,0.00015409]
[1772768790692,1.68493993,2082.9,2082.8,0.00015409]
[1772768791064,1.20024965,2082.9,2082.8,0.00015409]
[1772768792069,1.68493993,2082.9,2082.8,0.00015409]
[1772768792775,0.48469028,2082.9,2082.8,0.00015409]
[1772768794887,1.20024965,2082.9,2082.8,0.00015409]
[1772768795088,0.48469028,2082.8,2082.3,0.0011]
[1772768797798,1.68505519,2082.7,2082.3,0.0011]
[1772768798906,0.48469028,2082.6,2082.3,0.0011]
[1772768799290,0.48469028,2082.6,2082.5,0.0011]
[1772768799980,1.68511282,2082.6,2082.5,0.0011]
[1772768800906,0.001,2082.7,2082.5,0.34509983]
[1772768804372,1.511,2083.3,2082.6,0.34399983]
[1772768804596,1.99569028,2083.3,2082.6,0.34399983]
[1772768804797,0.48469028,2083.2,2082.6,0.34399983]
[1772768806203,1.99669028,2083.5,2082.7,0.47849678]
[1772768807502,0.48469028,2083.4,2082.7,0.47849678]
[1772768808304,0.48469028,2083.4,2082.9,0.47849678]
[1772768808505,0.48469028,2083.6,2082.9,0.47849678]
[1772768811416,4.80015534,2083.8,2083.1,0.47849678]
[1772768811417,0.48569028,2083.8,2083.1,0.47849678]
[1772768811629,1.68542236,2083.8,2083.1,0.47849678]
[1772768812924,0.48569028,2083.8,2083.1,0.47849678]
[1772768813414,1.68543523,2083.8,2083.3,0.47849678]
[1772768815382,0.48469028,2083.5,2083.0,1.67866151]
[1772768815811,0.48469028,2083.5,2083.0,1.20016473]
[1772768816015,0.48469028,2083.5,2083.1,0.47849678]
[1772768817626,0.48469028,2083.4,2082.9,0.47959678]
[1772768817801,0.48469028,2083.4,2082.9,1.67983548]
[1772768818195,0.48469028,2083.4,2082.9,0.0011]
[1772768818406,0.48469028,2083.3,2082.6,0.0011]
[1772768820120,0.49110628,2083.1,2082.6,1.20151037]
[1772768820318,0.49110628,2083.6,2082.7,0.4860126]
[1772768820519,0.49110628,2083.5,2082.7,0.4860126]
[1772768822624,0.49110628,2083.3,2082.7,0.4860126]
[1772768822810,0.49110628,2083.3,2082.7,1.68636125]
[1772768823208,0.49110628,2083.3,2082.8,0.4860126]
[1772768824230,1.19984641,2083.6,2082.8,0.4860126]
[1772768824404,1.69095269,2083.6,2082.8,0.4860126]
[1772768824603,1.69095269,2083.6,2083.0,0.4860126]
[1772768824815,0.49110628,2083.5,2083.0,0.4860126]
[1772768825214,0.001,2083.3,2083.0,0.4860126]
[1772768826628,1.69217235,2083.3,2082.9,0.0011]
[1772768827008,0.49110628,2083.2,2082.9,0.0011]
[1772768829026,1.69124069,2083.1,2082.9,0.0011]
[1772768829597,1.69215729,2083.3,2082.9,0.0011]
[1772768829831,1.69215729,2083.3,2082.9,0.4871126]
[1772768829832,0.001,2083.3,2082.9,0.4871126]
[1772768831535,0.001,2083.3,2083.0,1.68620463]
[1772768832322,0.001,2083.3,2083.0,0.4860126]
[1772768835536,0.001,2083.3,2083.1,0.4860126]
[1772768837119,0.001,2083.3,2082.9,0.4871126]
[1772768837317,0.49210628,2083.3,2082.9,1.68734888]
[1772768837718,1.69213342,2083.3,2082.9,1.68734888]
[1772768837917,1.69213342,2083.3,2083.0,0.4860126]
[1772768838447,0.49110628,2083.2,2082.9,0.0011]
[1772768838637,1.20102714,2083.3,2083.0,0.4860126]
[1772768840680,0.49210628,2083.3,2082.9,0.0011]
[1772768840946,0.49210628,2083.3,2082.9,1.68735627]
[1772768844152,1.69214456,2083.3,2082.9,1.68735627]
[1772768845152,1.69214456,2083.3,2082.9,0.4871126]
[1772768845341,1.69214456,2083.3,2082.9,1.6873558]
[1772768848660,1.69214456,2083.3,2082.9,1.68735205]
[1772768848955,0.49110628,2083.2,2083.1,0.0011]
[1772768850159,0.001,2083.3,2083.1,0.48433843]
[1772768850364,1.19986689,2083.6,2083.2,0.48323843]
[1772768850534,1.66508211,2083.6,2083.2,0.48323843]
[1772768850729,0.46521522,2083.5,2083.2,0.48323843]
[1772768851359,0.46521522,2083.5,2083.1,0.0011]
[1772768853052,0.46521522,2083.3,2083.1,0.0011]
[1772768855265,1.66529202,2083.2,2082.9,0.34565168]
[1772768855444,0.46521522,2083.1,2082.9,0.0011]
[1772768857475,1.66527744,2083.3,2082.9,0.34565168]
[1772768857773,3.17514872,2083.5,2082.9,0.34565168]
[1772768859201,0.46521522,2083.7,2082.9,0.34565168]
[1772768859340,1.20074539,2083.8,2083.1,0.34455168]
[1772768859341,0.001,2083.8,2083.1,0.34455168]
[1772768860580,0.001,2083.8,2083.4,0.34455168]
[1772768860761,0.001,2083.6,2083.4,0.34455168]
[1772768861391,0.001,2083.6,2083.5,1.199904]
[1772768861594,0.001,2083.6,2083.5,1.54445568]
[1772768862366,0.001,2083.6,2083.5,0.34455168]
[1772768862794,0.46621522,2084.5,2083.5,0.34355168]
[1772768862964,0.46521522,2084.4,2083.5,0.34355168]
[1772768863394,0.46521522,2084.2,2083.7,0.34355168]
[1772768865081,0.46521522,2084.2,2083.3,6.08315722]
[1772768865082,0.46521522,2084.2,2083.3,0.0011]
[1772768865400,0.46521522,2084.0,2083.3,0.0011]
[1772768865600,0.46521522,2083.8,2083.3,0.0011]
[1772768865997,1.66486478,2084.0,2083.3,0.34465168]
[1772768866203,0.46521522,2083.9,2083.3,0.0011]
[1772768867501,1.66492669,2083.9,2083.4,1.1999616]
[1772768869077,0.46521522,2084.1,2083.5,0.34355168]
[1772768869279,0.46521522,2084.3,2083.5,0.34355168]
[1772768869594,0.46521522,2084.0,2083.5,1.19985103]